bitfinex/quotes_SOLUSD_20250223
["timestamp","ask_amount","ask_price","bid_price","bid_amount"]
[1740288063342,0.063,170.71,170.7,44.47934558]
[1740288064149,0.0001,170.71,170.7,46.35770177]
[1740288067453,0.0001,170.71,170.7,44.47934558]
[1740288069857,0.0001,170.71,170.7,48.75934558]
[1740288071258,0.0001,170.71,170.7,36.39704558]
[1740288071442,0.0001,170.71,170.7,17.74739672]
[1740288071673,0.0001,170.71,170.7,11.88919672]
[1740288072259,0.0001,170.71,170.69,11.88919672]
[1740288072553,81.0,170.7,170.65,20.68953354]
[1740288072778,81.0,170.69,170.65,20.68953354]
[1740288073286,81.0,170.69,170.66,11.88919672]
[1740288074588,81.0,170.69,170.66,17.74869672]
[1740288075988,81.0,170.68,170.66,17.74869672]
[1740288076361,81.0,170.68,170.67,17.74839672]
[1740288079663,81.0,170.68,170.67,18.74839672]
[1740288079867,81.0,170.68,170.67,25.29539672]
[1740288080264,81.0,170.68,170.67,24.29539672]
[1740288080863,81.0,170.68,170.67,17.74839672]
[1740288081472,81.0,170.68,170.66,17.74869672]
[1740288081682,81.0,170.68,170.66,11.88919672]
[1740288082787,81.0,170.68,170.67,11.88919672]
[1740288083160,81.0,170.68,170.67,17.74839672]
[1740288088067,81.0001,170.71,170.67,17.74839672]
[1740288088280,81.0001,170.71,170.68,11.88919672]
[1740288089493,81.0001,170.71,170.68,17.74789672]
[1740288093171,81.0001,170.71,170.67,11.88919672]
[1740288093467,98.74719672,170.71,170.66,0.03]
[1740288093871,98.74719672,170.71,170.66,11.91919672]
[1740288093872,81.0,170.7,170.66,11.91919672]
[1740288094901,86.8583,170.7,170.66,11.91919672]
[1740288095198,81.0,170.7,170.66,11.91919672]
[1740288097908,86.8582,170.7,170.66,0.03]
[1740288098096,86.8582,170.7,170.66,11.91919672]
[1740288099799,81.0,170.69,170.67,11.88919672]
[1740288100294,81.0,170.69,170.68,11.88919672]
[1740288102479,81.0,170.69,170.68,17.74809672]
[1740288104297,81.0,170.69,170.68,36.39774558]
[1740288104701,0.0001,170.71,170.69,18.64964886]
[1740288105002,0.0001,170.71,170.7,11.88919672]
[1740288105900,0.0001,170.71,170.7,17.74739672]
[1740288107605,0.0001,170.71,170.7,36.39704558]
[1740288111013,0.0001,170.71,170.7,39.32688712]
[1740288111315,81.0,170.75,170.71,18.64964886]
[1740288111511,0.063,170.76,170.74,11.88919672]
[1740288111692,0.063,170.76,170.75,11.88919672]
[1740288113514,0.063,170.76,170.75,17.74569672]
[1740288117603,0.063,170.76,170.75,5.8565]
[1740288117811,0.063,170.76,170.75,17.74569672]
[1740288118006,11.88919672,170.82,170.75,17.74569672]
[1740288118007,81.0,170.82,170.76,18.64964886]
[1740288118215,81.0,170.82,170.77,0.87803726]
[1740288118420,81.0,170.82,170.79,18.64964886]
[1740288118923,81.0,170.82,170.81,30.53884558]
[1740288119104,0.063,170.83,170.81,30.53884558]
[1740288119105,0.063,170.83,170.82,24.50374886]
[1740288119306,0.063,170.83,170.82,36.39294558]
[1740288120104,0.063,170.83,170.82,30.53884558]
[1740288121722,0.063,170.83,170.82,11.88919672]
[1740288124222,0.063,170.83,170.82,36.39294558]
[1740288125122,0.063,170.83,170.82,30.53884558]
[1740288125324,0.063,170.83,170.82,11.88919672]
[1740288125913,0.063,170.83,170.82,17.74329672]
[1740288126222,0.063,170.83,170.82,11.88919672]
[1740288128316,0.063,170.83,170.82,36.39294558]
[1740288133742,0.063,170.83,170.82,83.94973246]
[1740288136448,0.063,170.83,170.82,84.94973246]
[1740288136643,0.063,170.83,170.82,93.2383682]
[1740288136839,0.063,170.89,170.86,20.0]
[1740288137040,0.063,170.89,170.88,11.88919672]
[1740288137846,0.063,170.89,170.88,30.53884558]
[1740288138657,0.063,170.89,170.88,36.39084558]
[1740288139537,0.063,170.89,170.88,37.39084558]
[1740288139748,0.063,170.89,170.88,38.26821402]
[1740288140146,0.063,170.89,170.88,37.26821402]
[1740288140336,0.063,170.89,170.88,38.26821402]
[1740288141571,0.063,170.89,170.88,36.39084558]
[1740288142672,0.063,170.89,170.88,37.39084558]
[1740288146641,0.063,170.89,170.88,36.39084558]
[1740288150364,0.063,170.89,170.88,37.39084558]
[1740288154771,0.063,170.89,170.88,37.39084558]
[1740288154952,0.063,170.89,170.88,36.39084558]
[1740288155270,0.063,170.89,170.88,37.39084558]
[1740288158070,0.063,170.89,170.88,69.40048061]
[1740288158773,0.063,170.89,170.88,37.39084558]
[1740288160359,0.063,170.89,170.88,36.39084558]
[1740288160558,0.063,170.89,170.88,37.39084558]
[1740288161361,0.063,170.89,170.88,38.26827615]
[1740288162560,0.063,170.9,170.89,19.64964886]
[1740288162762,0.063,170.9,170.89,31.53884558]
[1740288163766,0.063,170.9,170.89,37.39054558]
[1740288167078,0.03,170.94,170.93,30.53884558]
[1740288168683,0.03,170.94,170.93,36.38914558]
[1740288171863,0.03,170.94,170.93,37.38914558]
[1740288172877,0.0001,170.94,170.93,40.36101739]
[1740288173072,0.03,170.96,170.95,1.0]
[1740288173385,0.03,170.96,170.95,38.26548722]
[1740288173777,0.063,171.01,170.98,20.0]
[1740288173976,0.063,171.01,171.0,11.88919672]
[1740288175675,0.063,171.01,171.0,17.73709672]
[1740288175990,0.063,171.01,171.0,11.88919672]
[1740288178704,0.063,171.01,170.98,11.88919672]
[1740288178879,11.95219672,171.01,170.95,11.88919672]
[1740288179074,5.8479,171.0,170.95,11.88919672]
[1740288179383,5.8479,171.0,170.95,30.53884558]
[1740288180278,5.8479,171.0,170.96,11.88919672]
[1740288180474,1.5045,170.99,170.95,11.88919672]
[1740288181698,81.0,170.98,170.95,11.88919672]
[1740288185215,81.0,170.98,170.94,18.64964886]
[1740288185216,81.0,170.97,170.94,11.88919672]
[1740288185379,81.0,170.97,170.93,11.88919672]
[1740288186680,86.8491,170.97,170.93,11.88919672]
[1740288187196,81.0,170.97,170.93,11.88919672]
[1740288187394,81.0,170.97,170.94,11.88919672]
[1740288187774,86.8489,170.97,170.93,11.88919672]
[1740288188422,81.0,170.97,170.93,11.88919672]
[1740288188702,81.0,170.97,170.94,11.88919672]
[1740288188903,81.0,170.97,170.94,17.73909672]
[1740288189104,81.0,170.96,170.94,17.73909672]
[1740288189695,81.0,170.96,170.95,11.88919672]
[1740288190379,81.0,170.96,170.95,30.53884558]
[1740288190884,81.0,170.96,170.95,36.38844558]
[1740288192309,81.0,170.96,170.92,3.8626311]
[1740288192310,81.0,170.96,170.94,11.88919672]
[1740288192512,81.0,170.96,170.93,11.88919672]
[1740288194416,81.0,170.96,170.94,11.88919672]
[1740288195307,81.0,170.96,170.95,0.063]
[1740288198417,17.73849672,170.96,170.95,0.063]
[1740288199296,24.21969672,170.96,170.95,0.063]
[1740288201715,5.8493,170.96,170.95,0.063]
[1740288202599,17.73849672,170.96,170.95,0.063]
[1740288204709,7.382,170.97,170.95,0.063]
[1740288204915,17.73749672,170.99,170.95,0.063]
[1740288205087,5.8483,170.99,170.95,0.063]
[1740288205714,17.76719672,171.0,170.95,0.063]
[1740288206417,11.88919672,170.97,170.95,0.063]
[1740288206599,11.88919672,170.96,170.95,0.063]
[1740288207119,11.91919672,170.96,170.95,0.063]
[1740288208220,17.76849672,170.96,170.95,0.063]
[1740288210523,0.03,170.96,170.95,0.063]
[1740288220713,11.91919672,170.96,170.95,0.063]
[1740288221319,0.03,170.96,170.95,0.063]
[1740288223322,11.91919672,170.96,170.95,0.063]
[1740288223932,11.41919672,170.96,170.95,0.063]
[1740288225417,17.26849672,170.96,170.95,0.063]
[1740288231541,17.29849672,170.96,170.95,0.063]
[1740288233916,0.03,170.96,170.95,0.063]
[1740288234121,0.03,170.96,170.95,11.95219672]
[1740288237429,0.03,170.96,170.95,0.063]
[1740288237635,0.03,170.96,170.95,11.95219672]
[1740288240339,0.03,170.96,170.95,0.063]
[1740288242458,11.91919672,170.96,170.95,0.063]
[1740288243447,17.76849672,170.96,170.95,0.063]
[1740288249558,17.76849672,170.96,170.89,0.03]
[1740288249559,18.76849672,170.96,170.89,0.03]
[1740288249757,11.88919672,170.9,170.89,0.03]
[1740288253353,17.74049672,170.9,170.89,0.03]
[1740288257471,14.6252,170.94,170.89,0.03]
[1740288257663,0.03,170.96,170.93,18.30139672]
[1740288257857,0.03,170.96,170.95,11.88919672]
[1740288259668,0.03,170.96,170.95,17.73879672]
[1740288260748,0.03,170.96,170.95,36.38844558]
[1740288265080,0.03,170.96,170.95,36.41844558]
[1740288266151,0.03,171.0,170.96,18.64964886]
[1740288266480,0.03,171.0,170.99,11.88919672]
[1740288267669,0.03,171.0,170.99,17.73739672]
[1740288268280,0.03,171.0,170.99,36.38704558]
[1740288272084,0.03,171.0,170.99,39.29351582]
[1740288278272,0.063,171.01,171.0,18.64964886]
[1740288278477,0.063,171.01,171.0,30.53884558]
[1740288279474,0.0001,171.01,171.0,30.53884558]
[1740288281183,0.0001,171.01,171.0,36.38674558]
[1740288286183,0.0001,171.01,171.0,83.94353246]
[1740288290493,0.0001,171.01,171.0,36.38674558]
[1740288291784,0.0001,171.01,171.0,84.82038988]
[1740288295088,0.0001,171.01,171.0,85.82038988]
[1740288297768,0.0001,171.01,171.0,86.82038988]
[1740288299983,0.0001,171.01,171.0,86.88338988]
[1740288301697,0.0001,171.01,171.0,86.00653246]
[1740288304807,0.0001,171.01,171.0,167.90653246]
[1740288306193,0.0001,171.01,171.0,118.34974558]
[1740288306373,0.0001,171.01,171.0,122.64974558]
[1740288307098,0.0001,171.01,171.0,123.64974558]
[1740288307280,0.0001,171.01,171.0,171.20653246]
[1740288313098,0.0001,171.01,171.0,170.20653246]
[1740288313303,0.0001,171.01,171.0,106.46054886]
[1740288313481,0.0001,171.01,171.0,118.34974558]
[1740288316687,0.0001,171.01,171.0,36.44974558]
[1740288320804,0.0001,171.01,171.0,84.00653246]
[1740288321101,0.0001,171.01,171.0,85.00653246]
[1740288323724,0.0001,171.01,171.0,37.44974558]
[1740288328514,0.0001,171.01,171.0,36.44974558]
[1740288329413,0.0001,171.01,171.0,37.44974558]
[1740288329615,0.0001,171.01,171.0,36.44974558]
[1740288337327,0.0001,171.01,171.0,40.70974558]
[1740288364659,80.0001,171.06,171.0,40.70974558]
[1740288364859,80.0001,171.06,171.02,11.88919672]
[1740288365951,80.0001,171.06,171.02,17.73609672]
[1740288368236,80.0001,171.06,171.02,5.8469]
[1740288368667,80.0001,171.06,171.02,17.73609672]
[1740288368839,80.0001,171.06,171.03,11.88919672]
[1740288369264,80.0301,171.06,171.03,11.88919672]
[1740288370171,80.0301,171.06,171.04,5.8465]
[1740288380260,80.0301,171.06,171.03,24.49654886]
[1740288381268,80.0301,171.06,171.02,17.73629672]
[1740288382149,80.0001,171.05,171.02,5.8471]
[1740288383047,80.0001,171.05,171.0,5.9108]
[1740288383368,91.88929672,171.05,171.0,10.1508]
[1740288384060,93.39369672,171.04,171.0,0.063]
[1740288385163,80.0001,171.03,171.0,0.063]
[1740288386876,91.88929672,171.03,171.0,0.063]
[1740288387456,80.0001,171.03,171.0,0.063]
[1740288390065,91.88929672,171.03,171.0,0.063]
[1740288390976,80.0001,171.02,171.0,0.063]
[1740288391761,80.0001,171.02,171.0,11.95219672]
[1740288393056,80.0001,171.02,171.0,17.79989672]
[1740288394974,80.0001,171.02,171.01,18.64964886]
[1740288395172,5.876,171.06,171.01,51.00544558]
[1740288395173,0.03,171.06,171.01,51.00544558]
[1740288395377,0.03,171.06,171.03,11.88919672]
[1740288395572,0.03,171.06,171.04,11.88919672]
[1740288395752,0.03,171.06,171.03,11.88919672]
[1740288397087,0.03,171.06,171.04,5.8465]
[1740288401162,0.03,171.06,171.0,0.063]
[1740288401365,80.0001,171.05,171.0,0.063]
[1740288401574,11.88919672,171.03,171.0,0.063]
[1740288401783,11.88919672,171.04,171.0,0.063]
[1740288402361,11.88919672,171.04,171.0,5.9108]
[1740288402564,11.88919672,171.04,171.0,5.9109]
[1740288403264,91.88929672,171.05,171.0,18.71264886]
[1740288403601,80.0001,171.05,171.03,11.88919672]
[1740288403888,80.0001,171.05,171.02,18.64964886]
[1740288404260,91.88929672,171.05,171.0,0.063]
[1740288404466,91.88929672,171.05,171.0,18.71264886]
[1740288404785,11.88919672,171.03,171.0,0.063]
[1740288404967,80.0001,171.04,171.0,0.063]
[1740288405173,91.88929672,171.04,171.0,0.063]
[1740288405983,11.88919672,171.03,171.0,0.063]
[1740288406377,80.0001,171.04,171.0,0.063]
[1740288406766,80.0001,171.04,171.01,11.88919672]
[1740288407091,80.0301,171.06,171.03,11.88919672]
[1740288407266,80.0301,171.06,171.05,5.8462]
[1740288407471,0.03,171.06,171.05,17.73539672]
[1740288407668,0.03,171.06,171.05,5.8462]
[1740288408082,0.03,171.06,171.05,17.73539672]
[1740288409674,0.03,171.06,171.05,5.8462]
[1740288409873,0.03,171.06,171.05,24.49584886]
[1740288410192,0.03,171.06,171.05,36.38504558]
[1740288420699,0.063,171.07,171.06,18.64964886]
[1740288420882,0.063,171.07,171.06,36.38474558]
[1740288421078,0.0001,171.08,171.07,26.68924886]
[1740288421277,0.0001,171.08,171.07,38.57844558]
[1740288422591,0.0001,171.08,171.07,44.42394558]
[1740288423401,0.0001,171.08,171.07,43.42394558]
[1740288426107,0.0001,171.08,171.07,42.42394558]
[1740288426304,0.0001,171.08,171.07,36.38434558]
[1740288427307,0.0001,171.08,171.06,4.26]
[1740288427695,0.0001,171.08,171.06,18.64964886]
[1740288428906,0.0001,171.08,171.06,36.38464558]
[1740288429096,0.0001,171.08,171.07,11.88919672]
[1740288430000,0.0001,171.08,171.06,30.53884558]
[1740288430204,0.0001,171.08,171.06,18.64964886]
[1740288431796,0.0001,171.08,171.05,4.26]
[1740288432611,0.0001,171.08,171.05,18.64964886]
[1740288432790,97.73489672,171.07,171.01,21.97669672]
[1740288432995,11.88919672,171.05,171.0,16.19219672]
[1740288433195,11.88919672,171.05,171.01,18.64964886]
[1740288434091,5.8456,171.07,171.0,0.063]
[1740288434092,91.88929672,171.04,171.0,0.063]
[1740288434993,97.73599672,171.04,171.0,0.063]
[1740288436100,17.73609672,171.03,171.0,0.063]
[1740288437507,80.0001,171.02,171.0,0.063]
[1740288438118,91.88929672,171.01,171.0,0.063]
[1740288438901,80.0001,171.01,171.0,0.063]
[1740288442821,91.88929672,171.01,171.0,0.063]
[1740288444828,80.0001,171.01,171.0,0.063]
[1740288447324,5.8473,171.02,171.0,0.063]
[1740288447806,17.73649672,171.02,171.0,0.063]
[1740288448326,11.88919672,171.02,171.0,0.063]
[1740288450933,11.88919672,171.01,171.0,0.063]
[1740288452131,11.88919672,171.02,171.0,0.063]
[1740288454030,11.88919672,171.01,171.0,0.063]
[1740288454733,17.73659672,171.02,171.0,0.063]
[1740288457635,17.73619672,171.03,171.0,0.063]
[1740288460142,11.88919672,171.02,171.0,0.063]
[1740288461323,17.73619672,171.03,171.0,0.063]
[1740288466037,11.88919672,171.05,171.0,11.95219672]
[1740288466342,11.88919672,171.06,171.0,11.95219672]
[1740288466528,0.0001,171.08,171.01,11.88919672]
[1740288466529,11.88919672,171.07,171.01,11.88919672]
[1740288468242,11.88919672,171.07,171.02,5.8472]
[1740288469021,11.88929672,171.08,171.02,17.73639672]
[1740288471142,81.0001,171.08,171.05,11.88919672]
[1740288471525,81.0001,171.08,171.06,11.88919672]
[1740288471723,81.0001,171.08,171.05,11.88919672]
[1740288472125,81.0001,171.08,171.07,11.88919672]
[1740288472325,0.0001,171.08,171.07,11.88919672]
[1740288472530,0.0001,171.08,171.07,30.53884558]
[1740288472939,0.0001,171.08,171.07,36.38434558]
[1740288477131,0.0001,171.08,171.07,39.26114791]
[1740288484643,0.0001,171.08,171.07,36.38434558]
[1740288507253,0.0001,171.08,171.07,36.44734558]
[1740288516085,43.361,171.13,171.08,18.64964886]
[1740288516381,0.03,171.14,171.12,30.53884558]
[1740288516680,0.03,171.14,171.13,11.88919672]
[1740288517072,0.03,171.14,171.13,30.53884558]
[1740288517666,0.03,171.14,171.13,36.38234558]
[1740288521965,0.03,171.14,171.13,39.32341561]
[1740288530777,0.03,171.14,171.13,39.38641561]
[1740288535266,0.03,171.14,171.13,43.62641561]
[1740288536090,0.03,171.14,171.13,39.38641561]
[1740288536383,0.03,171.14,171.13,43.62641561]
[1740288540181,4.9318,171.18,171.14,18.64964886]
[1740288540381,4.9318,171.18,171.14,30.53884558]
[1740288541270,4.9318,171.18,171.14,18.64964886]
[1740288543090,4.9318,171.18,171.13,19.13326675]
[1740288543288,11.88919672,171.15,171.13,0.063]
[1740288543790,11.88919672,171.14,171.13,0.063]
[1740288544373,17.73229672,171.14,171.13,0.063]
[1740288550901,11.88919672,171.14,171.13,0.063]
[1740288551205,11.88919672,171.16,171.13,0.063]
[1740288551818,11.88919672,171.15,171.13,0.063]
[1740288552707,11.88919672,171.16,171.13,0.063]
[1740288554276,81.0,171.15,171.13,0.063]
[1740288555497,81.0,171.15,171.13,5.9065]
[1740288555887,81.03,171.18,171.13,17.79569672]
[1740288556420,92.91919672,171.18,171.13,5.9065]
[1740288557209,11.88919672,171.17,171.13,5.9065]
[1740288558799,81.03,171.18,171.13,17.79569672]
[1740288561516,92.91919672,171.18,171.13,5.9065]
[1740288568408,98.76099672,171.18,171.13,5.9065]
[1740288568810,98.76099672,171.18,171.13,0.063]
[1740288569017,11.88919672,171.16,171.13,0.063]
[1740288573039,98.73149672,171.17,171.13,0.063]
[1740288573341,81.0,171.17,171.13,11.95219672]
[1740288574424,81.0,171.17,171.14,5.8431]
[1740288580540,81.0,171.17,171.14,17.73229672]
[1740288584034,0.03,171.18,171.14,17.73229672]
[1740288584234,0.03,171.18,171.14,5.8431]
[1740288585949,11.91919672,171.18,171.14,5.8431]
[1740288589734,0.03,171.18,171.14,5.8431]
[1740288590646,0.03,171.18,171.14,5.9061]
[1740288596854,0.03,171.18,171.14,17.79529672]
[1740288600047,0.03,171.18,171.14,5.9061]
[1740288600567,0.03,171.18,171.14,17.79529672]
[1740288600850,0.03,171.18,171.14,5.9061]
[1740288604836,0.03,171.18,171.14,17.79529672]
[1740288606534,0.03,171.18,171.14,5.9061]
[1740288614760,11.91919672,171.18,171.14,5.9061]
[1740288617469,0.03,171.18,171.14,5.9061]
[1740288620971,11.91919672,171.18,171.14,5.9061]
[1740288625282,0.03,171.18,171.16,11.88919672]
[1740288625444,0.03,171.18,171.17,18.64964886]
[1740288625752,0.03,171.18,171.17,30.53884558]
[1740288626553,0.03,171.18,171.16,11.88919672]
[1740288626762,0.03,171.18,171.17,18.64964886]
[1740288627150,0.03,171.18,171.17,30.53884558]
[1740288627460,0.03,171.18,171.17,5.8421]
[1740288627977,0.03,171.18,171.17,18.64964886]
[1740288633058,0.03,171.18,171.17,24.49174886]
[1740288633786,0.03,171.18,171.17,36.38094558]
[1740288637681,0.03,171.18,171.17,36.44394558]
[1740288643585,0.03,171.18,171.17,24.55474886]
[1740288643881,0.03,171.18,171.17,36.44394558]
[1740288644085,0.03,171.18,171.17,37.44394558]
[1740288644886,0.03,171.18,171.17,36.44394558]
[1740288655216,0.03,171.19,171.17,37.44394558]
[1740288655514,0.03,171.19,171.18,34.75884558]
[1740288657011,0.03,171.19,171.18,41.60064558]
[1740288657316,0.03,171.19,171.18,43.16884558]
[1740288659716,0.03,171.2,171.19,18.64964886]
[1740288660017,0.03,171.2,171.19,30.53884558]
[1740288661098,0.0001,171.2,171.19,36.38024558]
[1740288662511,0.03,171.24,171.23,19.64964886]
[1740288662699,0.03,171.25,171.23,113.43884558]
[1740288662902,0.03,171.25,171.24,22.86964886]
[1740288663208,0.03,171.25,171.24,29.70934886]
[1740288663518,0.03,171.25,171.24,41.59854558]
[1740288664409,0.0001,171.26,171.25,18.64964886]
[1740288664596,0.0001,171.26,171.25,30.53884558]
[1740288665207,12.3947,171.36,171.29,38.64964886]
[1740288665208,0.03,171.36,171.29,38.64964886]
[1740288665423,11.88919672,171.34,171.3,4.22]
[1740288665636,11.88919672,171.33,171.3,4.22]
[1740288666117,11.88919672,171.32,171.26,103.84819672]
[1740288666506,11.88919672,171.32,171.27,18.64964886]
[1740288666711,11.88919672,171.31,171.27,18.64964886]
[1740288667020,1.6464,171.34,171.25,7.15451966]
[1740288667021,11.88919672,171.29,171.25,7.15451966]
[1740288667193,11.88919672,171.29,171.26,18.64964886]
[1740288668523,11.88919672,171.3,171.26,18.64964886]
[1740288670202,11.88919672,171.3,171.26,24.48854886]
[1740288670406,86.837,171.32,171.26,24.48854886]
[1740288670407,11.88919672,171.31,171.26,24.48854886]
[1740288670608,92.88919672,171.32,171.26,36.37774558]
[1740288671613,11.88919672,171.31,171.26,18.64964886]
[1740288671935,11.88919672,171.3,171.26,24.48844886]
[1740288672167,11.88919672,171.3,171.26,18.64964886]
[1740288673123,86.8372,171.32,171.26,18.64964886]
[1740288673124,11.88919672,171.29,171.26,18.64964886]
[1740288674724,11.88919672,171.28,171.23,21.94909672]
[1740288674925,11.88919672,171.25,171.21,5.8407]
[1740288675120,11.88919672,171.25,171.21,10.0607]
[1740288675319,11.88919672,171.23,171.19,182.99419117]
[1740288675510,11.88919672,171.23,171.19,105.31419117]
[1740288675730,11.88919672,171.23,171.2,18.64964886]
[1740288676647,11.88919672,171.24,171.2,18.64964886]
[1740288677549,11.88919672,171.25,171.2,18.64964886]
[1740288677948,11.88919672,171.23,171.2,18.64964886]
[1740288678940,11.88919672,171.24,171.2,18.64964886]
[1740288679124,11.88919672,171.25,171.2,24.49054886]
[1740288679448,92.88919672,171.26,171.21,11.88919672]
[1740288679654,81.0,171.26,171.23,18.64964886]
[1740288679826,11.88919672,171.26,171.23,18.64964886]
[1740288680026,11.88919672,171.26,171.21,5.8407]
[1740288680425,11.88919672,171.25,171.2,11.88919672]
[1740288681052,11.88919672,171.24,171.2,18.64964886]
[1740288681250,5.8388,171.27,171.19,98.22]
[1740288681251,11.88919672,171.21,171.19,98.22]
[1740288683738,11.88919672,171.2,171.19,98.22]
[1740288684055,11.88919672,171.2,171.17,0.063]
[1740288684230,11.88919672,171.19,171.17,0.063]
[1740288684556,11.88919672,171.18,171.17,20.063]
[1740288685365,11.88919672,171.18,171.17,0.063]
[1740288687064,17.73099672,171.18,171.17,0.063]
[1740288692669,65.2877836,171.18,171.17,0.063]
[1740288692869,67.8631836,171.18,171.17,0.063]
[1740288693068,82.4676836,171.18,171.14,0.063]
[1740288693372,11.88919672,171.15,171.14,0.063]
[1740288694858,17.73199672,171.15,171.14,0.063]
[1740288697781,5.8417,171.19,171.14,0.063]
[1740288698166,0.03,171.18,171.14,0.063]
[1740288698975,11.88919672,171.17,171.14,0.063]
[1740288699177,11.91919672,171.18,171.14,0.063]
[1740288699497,0.03,171.18,171.14,11.95219672]
[1740288699665,0.03,171.18,171.15,18.64964886]
[1740288700663,0.03,171.18,171.14,0.063]
[1740288701187,11.88919672,171.16,171.14,0.063]
[1740288701394,11.88919672,171.15,171.14,0.063]
[1740288705467,11.88919672,171.16,171.14,0.063]
[1740288706368,11.88919672,171.15,171.14,0.063]
[1740288708577,17.73199672,171.15,171.14,0.063]
[1740288708993,11.88919672,171.15,171.14,0.063]
[1740288711602,17.73199672,171.15,171.14,0.063]
[1740288712675,11.88919672,171.15,171.14,0.063]
[1740288718598,0.03,171.18,171.14,0.063]
[1740288718599,11.88919672,171.16,171.14,0.063]
[1740288718994,11.88919672,171.15,171.14,0.063]
[1740288720816,11.88919672,171.16,171.14,0.063]
[1740288720989,11.91919672,171.17,171.14,0.063]
[1740288721919,11.88919672,171.15,171.14,0.063]
[1740288723118,17.73199672,171.15,171.14,0.063]
[1740288724198,18.73199672,171.15,171.14,0.063]
[1740288724400,2.0,171.11,171.07,0.063]
[1740288724761,11.88919672,171.08,171.07,0.063]
[1740288726397,11.88919672,171.09,171.07,0.063]
[1740288726794,11.88919672,171.11,171.07,0.063]
[1740288727426,11.88919672,171.12,171.07,0.063]
[1740288727726,11.88919672,171.11,171.07,0.063]
[1740288728847,18.47410942,171.11,171.07,0.063]
[1740288729739,81.0,171.1,171.07,0.063]
[1740288731044,18.47410942,171.09,171.07,0.063]
[1740288731837,18.47410942,171.08,171.07,0.063]
[1740288734038,18.47410942,171.09,171.07,0.063]
[1740288736539,18.47410942,171.08,171.07,0.063]
[1740288742832,24.31930942,171.08,171.07,0.063]
[1740288743226,25.31930942,171.08,171.07,0.063]
[1740288745140,26.31930942,171.08,171.07,0.063]
[1740288748738,19.68033385,171.08,171.07,0.063]
[1740288749650,20.0,171.05,171.01,0.063]
[1740288749948,11.83513385,171.02,171.01,0.063]
[1740288752841,17.68233385,171.02,171.01,0.063]
[1740288755857,18.68233385,171.02,171.01,0.063]
[1740288757134,19.68233385,171.02,171.01,0.063]
[1740288761554,17.68233385,171.02,171.01,0.063]
[1740288761759,18.68233385,171.02,171.01,0.063]
[1740288762542,17.68233385,171.02,171.01,0.063]
[1740288763237,0.03,171.07,171.01,0.063]
[1740288763432,11.83513385,171.05,171.01,0.063]
[1740288763634,11.83513385,171.06,171.01,0.063]
[1740288765040,11.83513385,171.06,171.01,11.89813385]
[1740288765240,11.86513385,171.07,171.01,11.89813385]
[1740288765459,11.86513385,171.07,171.02,5.8472]
[1740288768144,81.0,171.06,171.02,5.8472]
[1740288769444,81.0,171.06,171.02,17.68233385]
[1740288771753,81.0,171.06,171.02,5.8472]
[1740288772567,81.0,171.06,171.02,17.68233385]
[1740288777664,81.0,171.06,171.03,11.83513385]
[1740288778676,81.0,171.06,171.02,17.68233385]
[1740288779476,0.03,171.07,171.03,18.64964886]
[1740288779656,0.03,171.07,171.05,18.17243385]
[1740288781278,0.03,171.07,171.06,5.8459]
[1740288782757,0.03,171.07,171.06,17.68103385]
[1740288784358,0.03,171.07,171.06,5.8459]
[1740288784983,0.03,171.07,171.06,36.33068271]
[1740288803794,81.0,171.11,171.1,11.83513385]
[1740288804088,0.03,171.13,171.1,11.83513385]
[1740288804284,0.03,171.13,171.12,11.83513385]
[1740288804469,0.03,171.13,171.12,30.48478271]
[1740288804666,0.03,171.13,171.12,36.32858271]
[1740288805577,0.03,171.13,171.12,24.49344886]